Cogmind - Beta 15 *** ADVENTURER MODE // 2025.09.22 @ 15:49:59 Player: Crusang Result: Destroyed by G-47 Trooper with Particle Gun Performance ------------- Evolutions (2) 1000 Regions Visited (4) 800 Robots Destroyed (72) 360 Value Destroyed (2479) 2479 Prototype IDs (4) 80 Alien Tech Used (0) 0 Bonus (200) 200 TOTAL SCORE: 4919 Bonus ------- Pacifist 200 Cogmind --------- Core Integrity 0/550 Matter 107/300 Energy 150/160 System Corruption 2% Temperature Cool (49) Movement Walking (266) Ox2 Location -8/Storage Parts ------- > --- POWER (3) -------- Light Nuclear Core > --- PROPULSION (3) --- Aluminum Leg Titanium Leg Titanium Leg > --- UTILITY (3) ------ Huge Storage Unit Melee Analysis Suite > --- WEAPON (2) ------- Minigun Flak Cannon > --- INVENTORY (25) --- Aluminum Leg Heat Sink Medium Storage Unit EM Shotgun Particle Gun Autogun Improved Assault Rifle Minigun Katana Peak State ------------ > --- POWER ------------ Light Ion Engine Light Nuclear Core Light Nuclear Core > --- PROPULSION ------- Light Treads Titanium Leg Titanium Leg > --- UTILITY ---------- Improved Heat Sink Huge Storage Unit Melee Analysis Suite > --- WEAPON ----------- Minigun Minigun > --- INVENTORY -------- Heat Sink Medium Storage Unit EM Shotgun Particle Gun Autogun Improved Assault Rifle Flak Cannon Katana [Rating: 28] Favorites ----------- Power Ion Engine Engine Ion Engine Power Core Light Nuclear Core Propulsion Aluminum Leg Treads Light Treads Leg Aluminum Leg Utility Melee Analysis Suite Device Improved Heat Sink Storage Huge Storage Unit Processor Melee Analysis Suite Hackware Hacking Suite Protection Hardened Light Armor Plating Weapon Flak Cannon Energy Gun Medium Laser Ballistic Gun Assault Rifle Ballistic Cannon Flak Cannon Launcher Guided Missile Launcher Slashing Weapon Katana Build | -11 -10 -9 -8 -8 ------- Run | Yrd Mat Mat Mat Sto Slots Evolved 4 | . . 2 2 . Power 2 | . . 2 . . Propulsion 1 | . . . 1 . Utility 1 | . . . 1 . Weapon . | . . . . . Parts Attached 51 | 5 . 15 15 16 Power 16 | 1 . 7 2 6 Engine 12 | 1 . 7 2 2 Core 4 | . . . . 4 Reactor . | . . . . . Propulsion 14 | 2 . 2 5 5 Treads 1 | . . . . 1 Leg 13 | 2 . 2 5 4 Wheel . | . . . . . Hover . | . . . . . Flight . | . . . . . Utility 5 | . . 2 2 1 Device 1 | . . . . 1 Storage 1 | . . . 1 . Processor 1 | . . 1 . . Hackware 1 | . . . 1 . Protection 1 | . . 1 . . Artifact . | . . . . . Weapon 16 | 2 . 4 6 4 Energy Gun 4 | 1 . 1 2 . Energy Cannon . | . . . . . Ballistic Gun 7 | 1 . 2 2 2 Ballistic Cannon 3 | . . . 2 1 Launcher 1 | . . . . 1 Special Weapon . | . . . . . Impact Weapon . | . . . . . Slashing Weapon 1 | . . 1 . . Piercing Weapon . | . . . . . Special Melee Weapon . | . . . . . Unidentified Prototypes 2 | . . 1 . 1 Parts Lost 23 | . . 6 4 13 Power 9 | . . 2 3 4 Propulsion 6 | . . 2 . 4 Utility 2 | . . . . 2 Weapon 6 | . . 2 1 3 Highest Loss Streak 5 | . . 5 2 3 To Critical Strikes . | . . . . . Average Backups 4 | . . 4 6 9 Power . | . . . . . Propulsion . | . . . 2 1 Utility 1 | . . 1 1 2 Weapon 2 | . . 2 3 5 Tool/Special . | . . . . . Unused Backups 2 | . . . . 2 Power . | . . . . . Propulsion . | . . . . . Utility 2 | . . . . 2 Weapon . | . . . . . Tool/Special . | . . . . . Average Slot Usage (%) 77 | . 71 85 90 68 Engine 12 | . 14 25 19 2 Core 2 | . . . . 5 Leg 20 | . 28 20 26 17 Device 1 | . . . . 2 Storage 6 | . . . 9 9 Processor 8 | . . 8 9 9 Hackware 3 | . . . 8 4 Protection 2 | . . 9 . . Energy Gun 1 | . 14 2 . . Ballistic Gun 8 | . 14 10 7 7 Ballistic Cannon 5 | . . . 1 9 Slashing Weapon 3 | . . 8 8 . Peak Build Rating 28 | 5 5 19 26 28 Average Rating 14 | 4 5 15 23 20 On Entrance 10 | . 5 5 19 23 Naked Turns 22 | . . 22 . . Heaviest Build 107 | 9 9 27 107 100 Greatest Support 45 | 20 20 26 45 45 Greatest Overweight (x) 33 | . . 3 32 33 Average Overweight (x) 1 | . . . 1 3 Largest Inventory Capacity 25 | 5 5 5 25 25 Average Capacity 14 | 5 5 5 25 25 Most Carried 13 | . 1 5 11 13 Average Carried 4 | . . 4 6 9 Final Capacity 25 | 5 5 5 25 25 Final Carried 11 | . 1 5 11 9 Class Distribution -------------------- 51% | Mutant 28% | Scavenger-Mutant 20% | Hacker-Mutant Dominant Class ---------------- Mutant | -10/Materials Scavenger-Mutant | -9/Materials Scavenger-Mutant | -8/Materials Hacker-Mutant | -8/Storage Resources | -11 -10 -9 -8 -8 ----------- Run | Yrd Mat Mat Mat Sto Matter Collected 1414 | 250 . 290 353 521 Remotely . | . . . . . Salvage Created 2812 | . . 1253 738 821 Parts 157 | . . 73 30 54 Haulers Intercepted 1 | . . . . 1 Recyclers Shooed 2 | . . 1 . 1 Parts Field Recycled . | . . . . . Retrieved Matter . | . . . . . Parts Self-Destructed . | . . . . . Prevented . | . . . . . Kills | -11 -10 -9 -8 -8 ------- Run | Yrd Mat Mat Mat Sto Combat Hostiles Destroyed 62 | . . 23 17 22 Melee 16 | . . 8 8 . Guns 30 | . . 13 6 11 Cannons 12 | . . . 3 9 AOE 3 | . . 1 . 2 Classes Destroyed 10 | . . 7 1 2 Worker 2 | . . 2 . . Builder 1 | . . 1 . . Hauler 1 | . . . . 1 Recycler 2 | . . 1 1 . Watcher 4 | . . 3 . 1 Swarmer 9 | . . . 3 6 Grunt 32 | . . 16 8 8 Duelist 1 | . . 1 . . Sentry 19 | . . 6 6 7 Hunter 1 | . . . . 1 Best Kill Streak 6 | . . 6 3 2 Combat Bots Only 5 | . . 5 2 2 Max Kills in Single Turn 2 | . . 1 1 2 Gunslinging 1 | . . . . 1 Exploded 1 | . . 1 . 1 Melee 1 | . . 1 1 . Uniques/NPCs Destroyed . | . . . . . Combat | -11 -10 -9 -8 -8 -------- Run | Yrd Mat Mat Mat Sto Hostile Shots Fired 585 | . . 204 135 246 Missed 172 | . . 62 39 71 Hits 413 | . . 142 96 175 Projectile 413 | . . 142 96 175 Critical Strikes 17 | . . 5 5 7 Damage Taken 4176 | . . 1462 1114 1600 Core 941 | . . 384 300 257 Absorbed by Shields . | . . . . . Ignored by Resistances 1240 | . . 439 316 485 Core Remaining (%) 68 | 100 100 4 . . Volleys Fired 150 | . . 61 36 53 Largest 2 | . . 2 2 2 Hottest 74 | . . 68 74 74 Shots Fired 211 | . . 68 38 105 Gun 154 | . . 68 28 58 Cannon 55 | . . . 10 45 Launcher 2 | . . . . 2 Special . | . . . . . Kinetic 187 | . . 46 38 103 Thermal 15 | . . 15 . . Explosive 2 | . . . . 2 Electromagnetic 7 | . . 7 . . Robot Hit Streak 20 | . . 20 14 14 Robot Miss Streak 5 | . . 3 3 5 Penetration Max . | . . . . . Secondary Targets 1 | . . . . 1 Max Gunslinging Chain 1 | . . . . 1 Shots Hit Robots 237 | . . 90 63 84 Core Hits 139 | . . 42 37 60 Critical Kills . | . . . . . Critical Parts Destroyed 1 | . . . 1 . Critical Strikes 9 | . . 2 7 . Burn 1 | . . 1 . . Destroy 1 | . . . 1 . Sever 7 | . . 1 6 . Melee Attacks 60 | . . 31 29 . Impact . | . . . . . Slashing 60 | . . 31 29 . Piercing . | . . . . . Sneak Attacks 7 | . . 6 1 . Combat Hostiles . | . . . . . Follow-up Attacks . | . . . . . Damage Inflicted 5609 | 1 . 2115 1818 1675 Guns 2188 | . . 887 575 726 Cannons 941 | . . . 262 679 Explosions 289 | . . 29 . 260 Melee 2154 | . . 1173 981 . Ramming 37 | 1 . 26 . 10 Kinetic 2846 | . . 604 837 1405 Thermal 218 | . . 218 . . Explosive 260 | . . . . 260 Electromagnetic 94 | . . 94 . . Impact . | . . . . . Slashing 2154 | . . 1173 981 . Piercing . | . . . . . Highest Corruption 2 | . . . . 2 Average Corruption 1 | . . . . 1 Corruption Purged . | . . . . . Corruption Blocked . | . . . . . Effects 23 | . . . . 23 Message Errors 7 | . . . . 7 Matter Fused 3 | . . . . 3 Heat Flow Errors 2 | . . . . 2 Energy Discharges 4 | . . . . 4 Parts Rejected 2 | . . . . 2 Parts Fused 1 | . . . . 1 Data Loss (minor) 1 | . . . . 1 Misfires 2 | . . . . 2 Weapon Failures 1 | . . . . 1 Overload Shots . | . . . . . Overflow Damage 163 | . . 157 5 1 Projectiles . | . . . . . Explosions 1 | . . . . 1 Melee 162 | . . 157 5 . Knockbacks 13 | . . . 2 11 Impact . | . . . . . Kinetic 12 | . . . 2 10 Secondary 1 | . . . . 1 Self-Inflicted Damage 42 | . . 42 . . Shots 1 | . . 1 . . Rammed 4 | . . 4 . . Targets Rammed 17 | 2 . 11 . 4 Kicked 13 | 2 . 7 . 4 Crushed . | . . . . . Highest Temperature 211 | . . 111 24 211 Average Temperature 25 | . . 23 6 35 Received Heat Transfer 2379 | . . 948 639 792 Siege Activations . | . . . . . Martial Activations . | . . . . . Shielding Activations . | . . . . . Robots Disrupted 1 | . . 1 . . Combat Hostiles 1 | . . 1 . . Robots Corrupted . | . . . . . Combat Hostiles . | . . . . . Parts Fried . | . . . . . Impact Corruptions . | . . . . . Robots Melted 1 | . . 1 . . Combat Hostiles 1 | . . 1 . . Parts Melted 3 | . . 3 . . Heat Transferred 629 | . . 629 . . Parts Sabotaged . | . . . . . Parts Stolen . | . . . . . Parts Stripped . | . . . . . Power Chain Reactions 1 | . . 1 . . Alert | -11 -10 -9 -8 -8 ------- Run | Yrd Mat Mat Mat Sto Maximum Alert Level 1 | . . 1 . . Low Security (%) 96 | 100 100 78 100 100 Level 1 3 | . . 21 . . Level 2 . | . . . . . Level 3 . | . . . . . Level 4 . | . . . . . Level 5 . | . . . . . High Security . | . . . . . Max Security . | . . . . . Peak Influence 239 | . 3 239 190 95 Initial 75 | . . . 75 61 Average 42 | . . 158 81 13 Influence Increases 1937 | . 3 740 532 662 Destroy 0b10 Robot/C 1240 | . . 460 340 440 Destroy 0b10 Robot/NC 50 | . . 35 5 10 Destroy Leader 360 | . . 126 100 134 Successful Hack 45 | . 3 8 12 22 Disable Machine 9 | . . . . 9 Destroy Structure 8 | . . 6 . 2 Partial Spotted 15 | . . 15 . . Lose Combat Pursuer 210 | . . 90 75 45 Influence Decreases 1852 | . 3 530 572 747 Entered New Map 244 | . . . 135 109 Time Decay 1448 | . 3 500 397 548 Lost Part 160 | . . 30 40 90 Squads Dispatched 14 | . . 3 1 10 Investigation 7 | . . 2 1 4 Extermination . | . . . . . Reinforcement 1 | . . 1 . . Assault . | . . . . . Garrison 6 | . . . . 6 Intercept . | . . . . . Searches Triggered . | . . . . . Construction Impeded . | . . . . . Haulers Reinforced . | . . . . . Active Scanning Responses . | . . . . . Cargo Convoy Interrupts . | . . . . . Stealth | -11 -10 -9 -8 -8 --------- Run | Yrd Mat Mat Mat Sto Distress Signals 5 | . . 1 . 4 Communications Jammed . | . . . . . Distress Signals . | . . . . . Times Spotted 97 | . . 38 22 37 Peak Tracking Total 9 | . . 9 3 6 Tactical Retreats 10 | . . 3 4 3 Traps | -11 -10 -9 -8 -8 ------- Run | Yrd Mat Mat Mat Sto Traps Triggered 5 | . . 1 2 2 Indirectly . | . . . . . Trap Hack Attempts . | . . . . . Triggered . | . . . . . Disarmed . | . . . . . Reprogrammed . | . . . . . Reused . | . . . . . Traps Extracted . | . . . . . Installed . | . . . . . Triggered . | . . . . . Machines | -11 -10 -9 -8 -8 ---------- Run | Yrd Mat Mat Mat Sto Machines Disabled 1 | . . . . 1 Max in Single Turn 1 | . . . . 1 Machines Repaired . | . . . . . Machines Dismantled . | . . . . . Machines Sabotaged . | . . . . . Overloaded Fab Kills . | . . . . . Hacking | -11 -10 -9 -8 -8 --------- Run | Yrd Mat Mat Mat Sto Machines Accessed 14 | . 2 3 2 7 Terminals 13 | . 2 3 2 6 Fabricators . | . . . . . Repair Stations . | . . . . . Recycling Units 1 | . . . . 1 Scanalyzers . | . . . . . Garrison Access . | . . . . . Total Hacks 38 | . 3 10 5 20 Successful 26 | . 2 3 5 16 Failed 12 | . 1 7 . 4 Catastrophic 3 | . . 2 . 1 Database Lockouts . | . . . . . Manual 1 | . . . . 1 Terminals 37 | . 3 10 5 19 Fabricators . | . . . . . Repair Stations . | . . . . . Recycling Units 1 | . . . . 1 Scanalyzers . | . . . . . Garrison Access . | . . . . . Terminal Hacks 25 | . 2 3 5 15 Record 13 | . . 3 3 7 Part Schematic 2 | . . . . 2 Prototype ID Bank 1 | . 1 . . . Open Door 1 | . . . . 1 Emergency Access Points 2 | . . . 1 1 Locate Traps 1 | . 1 . . . Surveillance Status 1 | . . . . 1 Recall Extermination 1 | . . . . 1 Recall Reinforcements 1 | . . . . 1 Zone Layout 2 | . . . 1 1 Fabricator Hacks . | . . . . . Repair Station Hacks . | . . . . . Recycling Unit Hacks 1 | . . . . 1 Report Inventory 1 | . . . . 1 Scanalyzer . | . . . . . Garrison Access Hacks . | . . . . . Unauthorized Hacks . | . . . . . Terminals . | . . . . . Fabricators . | . . . . . Repair Stations . | . . . . . Recycling Units . | . . . . . Scanalyzers . | . . . . . Garrison Access . | . . . . . Data Cores Recovered . | . . . . . Used . | . . . . . Hacking Detections 12 | . 1 3 2 6 Full Trace Events 9 | . . 3 1 5 Feedback Events 1 | . . . . 1 Corruption 1 | . . . . 1 Feedback Blocked . | . . . . . Robot Schematics Acquired . | . . . . . Robots Built . | . . . . . Authchips . | . . . . . Time . | . . . . . Total Robot Build Rating . | . . . . . Part Schematics Acquired 2 | . . . . 2 Parts Built . | . . . . . Authchips . | . . . . . Time . | . . . . . Total Part Build Rating . | . . . . . Parts Repaired . | . . . . . Time . | . . . . . Parts Recycled . | . . . . . Recycled Matter . | . . . . . Retrieved Matter . | . . . . . Retrieved Components . | . . . . . Parts Scanalyzed . | . . . . . Part Schematics Acquired . | . . . . . Parts Damaged . | . . . . . Bothacking | -11 -10 -9 -8 -8 ------------ Run | Yrd Mat Mat Mat Sto Used RIF Installer . | . . . . . Robots Hacked . | . . . . . Non-combat . | . . . . . Combat . | . . . . . Robot Hacks Applied . | . . . . . Relay Couplers Released . | . . . . . Fabnet Peak Effective % . | . . . . . Robots Rewired . | . . . . . Allies Hacked . | . . . . . Hacks Repelled . | . . . . . Allies | -11 -10 -9 -8 -8 -------- Run | Yrd Mat Mat Mat Sto Total Allies . | . . . . . Largest Group . | . . . . . Highest-Rated Group . | . . . . . Highest-Rated Ally . | . . . . . Total Orders . | . . . . . Ally Attacks . | . . . . . Total Damage . | . . . . . Kills . | . . . . . Allies Corrupted . | . . . . . Allies Melted . | . . . . . Intel | -11 -10 -9 -8 -8 ------- Run | Yrd Mat Mat Mat Sto Active Infowar (turns) . | . . . . . Robot Analysis Total . | . . . . . Derelict Logs Recovered . | . . . . . Drone Launches . | . . . . . Drone Recoveries . | . . . . . Exploration | -11 -10 -9 -8 -8 ------------- Run | Yrd Mat Mat Mat Sto Turns Passed 6484 | 2185 138 1104 896 2161 Spaces Moved 1983 | 520 115 528 263 557 Core 79 | 2 . 52 1 24 Treads 26 | . . . . 26 Legs 1878 | 518 115 476 262 507 Wheels . | . . . . . Hover . | . . . . . Flight . | . . . . . Fastest Speed 50 | 50 120 50 193 193 Average Speed 209 | 119 120 146 256 348 Slowest Speed 1700 | 120 120 200 1650 1700 Overloaded Moves . | . . . . . Propulsion Burnouts . | . . . . . Robots Hopped . | . . . . . Potential Cave-ins . | . . . . . Cave-ins Triggered . | . . . . . Exploration Rate (%) 43 | 73 30 36 21 59 Regions Visited 4 Branch Regions 1 Pre-discovered Areas . | . . . . . Known Exits Taken . | . . . . . Unknown Exits Taken 4 | 1 1 1 1 . Scrap Searched . | . . . . . Spaces Dug . | . . . . . Terrain Destroyed 5 | . . 5 . . Melee . | . . . . . Projectile . | . . . . . AOE 5 | . . 5 . . Terrain Rammed . | . . . . . Walls Destroyed . | . . . . . Machines Disabled . | . . . . . Actions | -11 -10 -9 -8 -8 --------- Run | Yrd Mat Mat Mat Sto Total 3999 | 2079 115 738 397 670 Wait 1706 | 1553 . 86 43 24 Move 1979 | 519 114 527 262 557 Hop . | . . . . . Pick Up 10 | . 1 4 3 2 Fast Attach 35 | 5 . 10 7 13 Attach 11 | . . . 4 7 Detach 3 | . . . 1 2 Swap 19 | . . 5 9 5 Drop 9 | . . 3 3 3 Fire 150 | . . 61 36 53 Melee 60 | . . 31 29 . Ram 4 | . . 4 . . Kick 13 | 2 . 7 . 4 Crush . | . . . . . Escape Stasis . | . . . . . Rewire . | . . . . . Trap . | . . . . . Miscellaneous . | . . . . . Route ------- -11/Scrapyard -10/Materials (discovered 2 exits: *Mat / [*Min]) -9/Materials -8/Materials (discovered 2 exits: *Sto x2) -8/Storage History --------- Turn | Location | Event 4 | -11/Scrapyard | Discovered new exit (range 16) 2186 | -11/Scrapyard | Entered Materials 2186 | -10/Materials | Discovered new exit (range 10) 2187 | -10/Materials | Build established: Mutant 2300 | -10/Materials | Discovered new exit (range 15) 2324 | -10/Materials | Entered another Materials area 2324 | -9/Materials | Evolved 2 slots: Power x2 2444 | -9/Materials | Core integrity fell below 50% 2469 | -9/Materials | Lost 5 parts (1p2n2w) 2489 | -9/Materials | Core integrity fell below 20% 2842 | -9/Materials | Build established: Scavenger-Mutant 3282 | -9/Materials | Discovered new exit (range 16) 3428 | -9/Materials | Entered another Materials area 3428 | -8/Materials | Evolved 2 slots: Propulsion x1, Utility x1 4185 | -8/Materials | Core integrity fell below 50% 4254 | -8/Materials | Discovered new exit (range 8) 4280 | -8/Materials | Discovered new exit (range 14) 4324 | -8/Materials | Entered Storage 4345 | -8/Storage | Build established: Hacker-Mutant 5391 | -8/Storage | Garrison activated, responded to threat 5507 | -8/Storage | Lost 3 parts (1p2w) 5976 | -8/Storage | Core integrity fell below 20% 6018 | -8/Storage | Garrison activated, responded to threat 6265 | -8/Storage | Build established: Mutant 6353 | -8/Storage | Found Prototype Launcher 6355 | -8/Storage | Identified Gui. Missile Launcher 6485 | -8/Storage | Destroyed by G-47 Trooper with Particle Gun Last Messages --------------- Y-45 Defender emerges from the garrison. K-01 Serf collects debris. Destroyed Aluminum Leg. Y-45 Defender destroyed. U-05 Engineer lays Concrete. K-01 Serf collects debris. U-05 Engineer lays Concrete. Gui. Missile Launcher destroyed. Critical hit (Burn: +37). G-47 Trooper knocked back. G-47 Trooper destroyed. Destroyed Lgt. Ion Engine. R-06 Scavenger distress signal alerts nearby ally. K-01 Serf collects debris. G-47 Trooper knocked back. G-47 Trooper destroyed. K-01 Serf collects debris. U-05 Engineer builds a Door. K-01 Serf collects debris. U-05 Engineer builds a Door. Map ----- +----------------------------------------------------+ | ???????????????????????????????????????? | | ???????????????????????????????????????? | | ???????????????????????????????????????? | | ???????????????????????????????????????? | | ???????????????????????????????????????? | | ???????????????????????????????????????? | | ???????????????????????????????????????? | | ???????????????????????????????????????? | | ???????????????????????????????????????? | | ???????????????????????????????????????? | | ????????????????????????? ?????????????? | | ????????????????????????? ?????????????? | | ????????????????????????? ?????????????? | | ????????????????????????? ?????????????? | | ????????????????????????? ?????????????? | | ????????????????????????? ?????????????? | | ????????????#???????????? ?????????????? | | ????????????# "?????????# #????????????? | | ????????????# """?????#?# #????????????? | | ????????????# """???" #?# #????????????? | | ????????????# ? ??# #????????????? | | ????????????# ????# #????????????? | | ?????????????? ?????# #????????????? | | ###+############+######## ###??"" ?????? | | g%% # """ ?????? | | r ! g @ u+ """ ?????? | | ! ^ uk Y! #??????????? | | ######### ^! ^ k######## #??????????? | | ###?????# !! ! ""#????? #??????????? | | " #?????# ^ ""#??????#??????????? | | " #?????# T"#?????????????????? | | " ####### ""#?????????????????? | | + ""#?????????????????? | | ###### ###?????????????????? | | #????# !!! #???????????????????? | | ###????# [%=* #???????????????????? | | ???????# " "[ #???????????????????? | | ????#### "G" #???????????????????? | | ????# " #???????????????????? | | ????# #???????????????????? | | ?#### #???????????????????? | | ?# ## ##### ????????????? | | ## ## #???######+####### ????????? | | #T ## #???????? ???????????? ????????? | | ##+## #???????? ??????????????????????? | | ?# #????????? ??????????????????????? | | ?######????????????????????????????????? | | ???????????????????????????????????????? | | ???????????????????????????????????????? | | ???????????????????????????????????????? | +----------------------------------------------------+ Best States ------------- Heat Dissipation 45 Energy Generation 28 Energy Capacity 565 Matter Stores 300 Matter Capacity 300 Sight Range 16 Terrain Scan Density 10 Armor Coverage 150 Resistance: KI 20 Resistance: TH 20 Resistance: EX 20 Resistance: EM 20 Resistance: I 20 Resistance: S 20 Resistance: P 20 Evasion (%) 55 Melee Accuracy 5 Recoil Reduction 1 Offensive Hacking 20 Item Schematics ----------------- Microactuators | -8/Storage | Hacked Med. Treads | -8/Storage | Hacked Robot Schematics ------------------ None Fabricated ------------ Nothing Repaired ---------- Nothing Alien Tech Used ----------------- None Achievements -------------- Close Call Dramatic Entrance Challenges ------------ None Game ------ Seed RegenerativeBoltCannon Manual? 0 Play Time 00:27:36 Cumulative 2.6 hours Start 2025.09.22 @ 15:23:15 End 2025.09.22 @ 15:49:59 Sessions 1 Manual Loads 0 Difficulty Adventurer Special Mode None Game No. 5 Rogue 0 Adventurer 5 Explorer 0 Win Type - Total 0 Types 0/0/0/0/0/0/0/0/0/0 Lore% 2 Gallery% 8 Achievement% 10 Wizard Run 0 Options --------- Layout 0 ASCII 0 Keyboard 0 Movement Numpad Keybinds 0 Fullscreen 2 Font 24/Smallcaps Map View 38x25 Zoom Use 100% Tactical HUD 0 Map Filters NONE Filters NONE Steam 1 RUN: a34ad67b-71d2-4149-9981-7803eead2a2d